fUSD/lending_fUSD_20240116
["ID","MTS","AMOUNT","RATE_DAILY","PERIOD"]
[311812661,1705427447581,-486.39921938,0.00023288,2]
[311812662,1705427447591,-197.88741358,0.00023288,4]
[311812663,1705427447603,-352.44134257,0.00023288,4]
[311812664,1705427447613,-422.02717735,0.00023288,4]
[311812665,1705427447623,-500.0,0.00023288,4]
[311812666,1705427447633,-356.89344058,0.00023288,4]
[311812667,1705427447642,-489.87865113,0.00023288,4]
[311812668,1705427447652,-500.0,0.00023288,2]
[311812669,1705427447663,-500.0,0.00023288,2]
[311812670,1705427447674,-500.0,0.00023288,2]
[311812671,1705427447683,-500.0,0.00023288,2]
[311812672,1705427447695,-500.0,0.00023288,2]
[311812673,1705427447706,-500.0,0.00023288,2]
[311812674,1705427447716,-500.0,0.00023288,2]
[311812675,1705427447725,-367.22802943,0.00023288,2]
[311812676,1705427447735,-500.0,0.00023288,2]
[311812677,1705427447748,-546.04194916,0.00023288,2]
[311812678,1705427447758,-500.0,0.00023288,2]
[311812679,1705427447767,-500.0,0.00023288,2]
[311812680,1705427447779,-500.0,0.00023288,2]
[311812681,1705427447789,-500.0,0.00023288,2]
[311812682,1705427447798,-500.0,0.00023288,2]
[311812683,1705427447807,-500.0,0.00023288,2]
[311812684,1705427447816,-500.0,0.00023288,2]
[311812685,1705427447825,-500.0,0.00023288,2]
[311812686,1705427447835,-500.0,0.00023288,2]
[311812687,1705427447844,-500.0,0.00023288,2]
[311812688,1705427447855,-500.0,0.00023288,2]
[311812689,1705427447864,-500.0,0.00023288,2]
[311812690,1705427447874,-500.0,0.00023288,2]
[311812691,1705427447883,-500.0,0.00023288,2]
[311812692,1705427447892,-471.26149761,0.00023288,2]
[311812693,1705427447901,-500.0,0.00023288,2]
[311812694,1705427447910,-168.81087093,0.00023288,4]
[311812695,1705427447919,-500.0,0.00023288,2]
[311812696,1705427447929,-195.95146044,0.00023288,4]
[311812697,1705427447940,-304.30636108,0.00023288,2]
[311812698,1705427447951,-500.0,0.00023288,2]
[311812699,1705427447960,-500.0,0.00023288,2]
[311812700,1705427447971,-162.54168288,0.00023288,2]
[311812701,1705427447981,-499.99999999,0.00023288,2]
[311812702,1705427447994,-500.0,0.00023288,2]
[311812703,1705427448004,-450.03623324,0.00023288,2]
[311812704,1705427448015,-500.0,0.00023288,2]
[311812705,1705427448026,-433.40183333,0.00023288,2]
[311812706,1705427448036,-500.0,0.00023288,2]
[311812707,1705427448047,-500.0,0.00023288,4]
[311812708,1705427448059,-402.18233268,0.00023288,4]
[311812709,1705427448069,-422.20170995,0.00023288,4]
[311812710,1705427448078,-933.33333333,0.00023288,2]
[311812711,1705427448087,-451.59159306,0.00023288,2]
[311812712,1705427448098,-192.87267139,0.00023288,2]
[311812713,1705427448108,-933.33333333,0.00023288,2]
[311812714,1705427448118,-933.33333333,0.00023288,2]
[311812715,1705427448127,-152.34793022,0.00023288,4]
[311812716,1705427448138,-446.5692854,0.00023288,4]
[311812717,1705427448148,-156.09,0.0002335,2]
[311812718,1705427448158,-200.0,0.00023388,2]
[311812719,1705427448167,-159.88,0.00023454,2]
[311812720,1705427448177,-157.04,0.00023574,2]
[311812721,1705427448187,-156.09,0.00023598,2]
[311812722,1705427448198,-3056.0,0.000236,2]
[311812723,1705427448208,-5004.0,0.000237,2]
[311812724,1705427448218,-159.88,0.00023762,2]
[311812725,1705427448227,-166.22,0.00023765,2]
[311812726,1705427448237,-156.44,0.00023794,2]
[311812727,1705427448246,-462.35,0.00023812,2]
[311812728,1705427448255,-156.09,0.00023847,2]
[311812729,1705427448265,-243.42,0.00023942,2]
[311812730,1705427448275,-201.0574264,0.00024,2]
[311812731,1705427448284,-431.37614522,0.00024,2]
[311812732,1705427448293,-5000.0,0.00024,2]
[311812733,1705427448302,-155.0,0.00024,2]
[311812734,1705427448311,-509.380643,0.00024,2]
[311812735,1705427448322,-3000.0,0.00024,2]
[311812736,1705427448331,-162.09946546,0.0002401,2]
[311812737,1705427448340,-835.0,0.00024021,2]
[311812738,1705427448350,-945.0,0.00024021,2]
[311812739,1705427448359,-1234.0,0.00024021,2]
[311812740,1705427448369,-822.777,0.00024021,2]
[311812741,1705427448379,-394.564,0.00024021,2]
[311812742,1705427448388,-319.0,0.00024021,2]
[311812743,1705427448397,-4173.0,0.00024021,2]
[311812744,1705427448407,-2904.0,0.00024021,2]
[311812745,1705427448416,-19697.0,0.00024021,2]
[311812746,1705427448426,-4436.131,0.00024021,2]
[311812747,1705427448435,-2272.0,0.00024021,2]
[311812748,1705427448445,-1029.0,0.00024021,2]
[311812749,1705427448454,-10000.0,0.00024046,2]
[311812750,1705427448463,-156.09,0.00024095,2]
[311812751,1705427448472,-316.18,0.00024147,2]
[311812752,1705427448481,-832.9,0.00024215,2]
[311812753,1705427448491,-157.04,0.00024249,2]
[311812754,1705427448501,-672.06,0.0002428,2]
[311812755,1705427448510,-167.0,0.00024297,2]
[311812756,1705427448520,-156.09,0.00024343,2]
[311812757,1705427448530,-19123.00177591,0.000245,2]
[311812758,1705427448539,-151.0,0.000245,7]
[311812759,1705427448548,-151.0,0.000245,7]
[311812760,1705427448558,-319.545544,0.000245,7]
[311812761,1705427448568,-319.545544,0.000245,7]
[311812762,1705427448578,-183.18008819,0.00024504,2]
[311812763,1705427448590,-200.7950823,0.00024504,2]
[311812764,1705427448600,-156.09,0.00024592,2]
[311812765,1705427448610,-250.0,0.00024658,2]
[311812766,1705427448621,-243.42,0.00024814,2]
[311812767,1705427448631,-7999.99,0.00024847,4]
[311812768,1705427448642,-248.126248,0.00024847,7]
[311812769,1705427448652,-10000.0,0.00024847,2]
[311812770,1705427448668,-151.0,0.00024847,7]
[311812771,1705427448677,-1000.0,0.000249,2]
[311812772,1705427448686,-157.04,0.00024925,2]
[311812773,1705427448697,-416.32,0.0002498,2]
[311812774,1705427448707,-4403.99,0.0002498,2]
[311812775,1705427448717,-536.74,0.0002498,2]
[311812776,1705427448726,-16369.71,0.0002498,2]
[311812777,1705427448738,-2367.07,0.0002498,2]
[311812778,1705427448748,-472.80031983,0.00024995,2]
[311812779,1705427448757,-156.91262656,0.00024996,2]
[311812780,1705427448767,-204.31624618,0.00024996,2]
[311812781,1705427448778,-384.17527737,0.00024998,2]
[311812782,1705427448788,-162.43098833,0.00024998,2]
[311812783,1705427448798,-158.98247279,0.00024999,2]
[311812784,1705427448810,-201.95095563,0.00025,2]
[311812785,1705427448821,-693.65618198,0.00025,2]
[311812786,1705427448832,-374.71049551,0.00025,2]
[311812787,1705427448843,-2396.13324272,0.00025,2]
[311812788,1705427448854,-1583.52448944,0.00025,2]
[311812789,1705427448864,-508.62062746,0.00025,2]
[311812790,1705427448875,-1070.43397792,0.00025,2]
[311812791,1705427448884,-303.34687539,0.00025,2]
[311812792,1705427448894,-167.30708743,0.00025,2]
[311812793,1705427448903,-200.0,0.00025,2]
[311812794,1705427448913,-2091.27406584,0.00025,2]
[311812795,1705427448922,-191.59212666,0.00025,2]
[311812796,1705427448932,-1024.52319113,0.00025,2]
[311812797,1705427448943,-1250.0,0.00025,3]
[311812798,1705427448953,-5375.725912,0.00025,2]
[311812799,1705427448962,-650.0,0.00025,2]
[311812800,1705427448973,-167.0,0.00025099,2]
[311812801,1705427448983,-832.9,0.00025194,2]
[311812802,1705427448993,-162.09946546,0.0002522,2]
[311812803,1705427449003,-205.0,0.00025435,6]
[311812804,1705427449015,-155.9,0.00025589,2]
[311812805,1705427449025,-157.04,0.000256,2]
[311812806,1705427449034,-243.42,0.00025686,2]
[311812807,1705427449044,-167.0,0.00025901,2]
[311812808,1705427449053,-2061.3292272,0.00026,2]
[311812809,1705427449064,-3000.0,0.00026,2]
[311812810,1705427449074,-150.0,0.00026,14]
[311812811,1705427449083,-1000.0,0.00026,2]
[311812812,1705427449093,-832.9,0.00026172,2]
[311812813,1705427449102,-8601.83289866,0.000264,2]
[311812814,1705427449111,-316.18,0.0002641,2]
[311812815,1705427449120,-162.09946546,0.0002643,2]
[311812816,1705427449130,-462.35,0.00026458,2]
[311812817,1705427449139,-150.0,0.000265,14]
[311812818,1705427449148,-401.54,0.00026539,2]
[311812819,1705427449157,-401.54,0.00026539,2]
[311812820,1705427449168,-401.54,0.00026539,2]
[311812821,1705427449178,-243.42,0.00026557,2]
[311812822,1705427449189,-2711.14,0.00026575,2]
[311812823,1705427449198,-29535.71,0.00026575,2]
[311812824,1705427449208,-167.0,0.00026703,2]
[311812825,1705427449218,-672.06,0.00026978,2]
[311812826,1705427449228,-413.17096398,0.00027,2]
[311812827,1705427449238,-155.0,0.00027,2]
[311812828,1705427449248,-2000.0,0.00027,2]
[311812829,1705427449259,-1300.0,0.00027,3]
[311812830,1705427449270,-150.0,0.00027,15]
[311812831,1705427449280,-835.0,0.00027021,2]
[311812832,1705427449291,-945.0,0.00027021,2]
[311812833,1705427449300,-313.92,0.00027021,2]
[311812834,1705427449312,-1459.363,0.00027021,2]
[311812835,1705427449321,-2904.0,0.00027021,2]
[311812836,1705427449331,-4804.172,0.00027021,2]
[311812837,1705427449341,-2272.0,0.00027021,2]
[311812838,1705427449351,-1029.0,0.00027021,2]
[311812839,1705427449361,-832.9,0.00027151,2]
[311812840,1705427449371,-300.0,0.00027396,2]
[311812841,1705427449381,-155.0,0.00027397,2]
[311812842,1705427449391,-3000.0,0.00027397,2]
[311812843,1705427449401,-3000.0,0.00027397,2]
[311812844,1705427449412,-3000.0,0.00027397,2]
[311812845,1705427449421,-3000.0,0.00027397,2]
[311812846,1705427449432,-3000.0,0.00027397,2]
[311812847,1705427449441,-3000.0,0.00027397,2]
[311812848,1705427449451,-5181.3253,0.00027397,2]
[311812849,1705427449461,-49820.86,0.00027397,2]
[311812850,1705427449471,-151.0,0.00027397,7]
[311812851,1705427449481,-151.0,0.00027397,7]
[311812852,1705427449492,-319.545544,0.00027397,7]
[311812853,1705427449503,-319.545544,0.00027397,7]
[311812854,1705427449513,-30609.0,0.00027397,2]
[311812855,1705427449522,-151.0,0.00027397,7]
[311812856,1705427449532,-740.32849428,0.000274,2]
[311812857,1705427449541,-8000.0,0.000274,2]
[311812858,1705427449551,-243.42,0.00027429,2]
[311812859,1705427449562,-401.54,0.00027464,2]
[311812860,1705427449576,-150.0,0.000275,16]
[311812861,1705427449587,-167.0,0.00027505,2]
[311812862,1705427449598,-30609.0,0.00027556,2]
[311812863,1705427449609,-162.09946546,0.0002764,2]
[311812864,1705427449621,-1000.0,0.000277,2]
[311812865,1705427449632,-30609.0,0.00027714,2]
[311812866,1705427449642,-30609.0,0.00027872,2]
[311812867,1705427449654,-688.52328288,0.00028,2]
[311812868,1705427449666,-364.25149533,0.00028,2]
[311812869,1705427449676,-928.69907428,0.00028,2]
[311812870,1705427449686,-202.97954373,0.00028,2]
[311812871,1705427449698,-150.0,0.00028,16]
[311812872,1705427449709,-151.0,0.00028,7]
[311812873,1705427449719,-151.0,0.00028,7]
[311812874,1705427449729,-319.545544,0.00028,7]
[311812875,1705427449738,-319.545544,0.00028,7]
[311812876,1705427449748,-4831.147189,0.00028,2]
[311812877,1705427449758,-151.0,0.00028,7]
[311812878,1705427449769,-200.0,0.00028,2]
[311812879,1705427449779,-1780.0425877,0.00028,2]
[311812880,1705427449789,-1780.0425877,0.00028,2]
[311812881,1705427449800,-1780.0425877,0.00028,2]
[311812882,1705427449810,-1780.0425877,0.00028,2]
[311812883,1705427449820,-1780.0425877,0.00028,2]
[311812884,1705427449830,-1780.0425877,0.00028,2]
[311812885,1705427449839,-1780.0425877,0.00028,2]
[311812886,1705427449849,-1780.0425877,0.00028,2]
[311812887,1705427449860,-1780.0425877,0.00028,2]
[311812888,1705427449871,-1780.0425877,0.00028,2]
[311812889,1705427449882,-1780.0425877,0.00028,2]
[311812890,1705427449892,-1780.0425877,0.00028,2]
[311812891,1705427449902,-1780.0425877,0.00028,2]
[311812892,1705427449913,-1780.0425877,0.00028,2]
[311812893,1705427449923,-1780.0425877,0.00028,2]
[311812894,1705427449933,-1780.0425877,0.00028,2]
[311812895,1705427449943,-1780.0425877,0.00028,2]
[311812896,1705427449953,-1780.0425877,0.00028,2]
[311812897,1705427449975,-1780.0425877,0.00028,2]
[311812898,1705427449986,-1780.0425877,0.00028,2]
[311812899,1705427449997,-1780.0425877,0.00028,2]
[311812900,1705427450007,-1780.0425877,0.00028,2]
[311812901,1705427450018,-1780.0425877,0.00028,2]
[311812902,1705427450029,-1780.0425877,0.00028,2]
[311812903,1705427450040,-1780.0425877,0.00028,2]
[311812904,1705427450051,-1780.0425877,0.00028,2]
[311812905,1705427450062,-1780.0425877,0.00028,2]
[311812906,1705427450072,-1780.0425877,0.00028,2]
[311812907,1705427450083,-1780.0425877,0.00028,2]
[311812908,1705427450093,-1780.0425877,0.00028,2]
[311812909,1705427450105,-1780.0425877,0.00028,2]
[311812910,1705427450115,-1780.0425877,0.00028,2]
[311812911,1705427450126,-1780.0425877,0.00028,2]
[311812912,1705427450136,-1780.0425877,0.00028,2]
[311812913,1705427450147,-1780.0425877,0.00028,2]
[311812914,1705427450158,-1780.0425877,0.00028,2]
[311812915,1705427450169,-1780.0425877,0.00028,2]
[311812916,1705427450180,-1780.0425877,0.00028,2]
[311812917,1705427450192,-1780.0425877,0.00028,2]
[311812918,1705427450202,-1780.0425877,0.00028,2]
[311812919,1705427450213,-1780.0425877,0.00028,2]
[311812920,1705427450223,-1780.0425877,0.00028,2]
[311812921,1705427450234,-1780.0425877,0.00028,2]
[311812922,1705427450245,-1780.0425877,0.00028,2]
[311812923,1705427450256,-1780.0425877,0.00028,2]
[311812924,1705427450266,-1780.0425877,0.00028,2]
[311812925,1705427450277,-1780.0425877,0.00028,2]
[311812926,1705427450288,-1780.0425877,0.00028,2]
[311812927,1705427450299,-1780.0425877,0.00028,2]
[311812928,1705427450311,-1780.0425877,0.00028,2]
[311812929,1705427450322,-1780.0425877,0.00028,2]
[311812930,1705427450332,-1780.0425877,0.00028,2]
[311812931,1705427450343,-1780.0425877,0.00028,2]
[311812932,1705427450354,-1780.0425877,0.00028,2]
[311812933,1705427450364,-1780.0425877,0.00028,2]
[311812934,1705427450375,-1780.0425877,0.00028,2]
[311812935,1705427450385,-1780.0425877,0.00028,2]
[311812936,1705427450396,-1780.0425877,0.00028,2]
[311812937,1705427450407,-1780.0425877,0.00028,2]
[311812938,1705427450417,-1780.0425877,0.00028,2]
[311812939,1705427450427,-1780.0425877,0.00028,2]
[311812940,1705427450439,-1780.0425877,0.00028,2]
[311812941,1705427450449,-1780.0425877,0.00028,2]
[311812942,1705427450460,-1780.0425877,0.00028,2]
[311812943,1705427450470,-1780.0425877,0.00028,2]
[311812944,1705427450481,-1780.0425877,0.00028,2]
[311812945,1705427450492,-1780.0425877,0.00028,2]
[311812946,1705427450504,-1780.0425877,0.00028,2]
[311812947,1705427450514,-1780.0425877,0.00028,2]
[311812948,1705427450526,-1780.0425877,0.00028,2]
[311812949,1705427450536,-1780.0425877,0.00028,2]
[311812950,1705427450547,-1780.0425877,0.00028,2]
[311812951,1705427450557,-1780.0425877,0.00028,2]
[311812952,1705427450568,-1780.0425877,0.00028,2]
[311812953,1705427450581,-1780.0425877,0.00028,2]
[311812954,1705427450592,-1780.0425877,0.00028,2]
[311812955,1705427450603,-1780.0425877,0.00028,2]
[311812956,1705427450614,-1780.0425877,0.00028,2]
[311812957,1705427450625,-1780.0425877,0.00028,2]
[311812958,1705427450636,-1780.0425877,0.00028,2]
[311812959,1705427450647,-1780.0425877,0.00028,2]
[311812960,1705427450661,-1780.0425877,0.00028,2]
[311812961,1705427450672,-1780.0425877,0.00028,2]
[311812962,1705427450682,-1780.0425877,0.00028,2]
[311812963,1705427450693,-1780.0425877,0.00028,2]
[311812964,1705427450704,-1780.0425877,0.00028,2]
[311812965,1705427450714,-1780.0425877,0.00028,2]
[311812966,1705427450724,-1780.0425877,0.00028,2]
[311812967,1705427450734,-1780.0425877,0.00028,2]
[311812968,1705427450745,-1780.0425877,0.00028,2]
[311812969,1705427450755,-1780.0425877,0.00028,2]
[311812970,1705427450766,-1780.0425877,0.00028,2]
[311812971,1705427450776,-1780.0425877,0.00028,2]
[311812972,1705427450787,-1780.0425877,0.00028,2]
[311812973,1705427450797,-1780.0425877,0.00028,2]
[311812974,1705427450808,-1780.0425877,0.00028,2]
[311812975,1705427450818,-1780.0425877,0.00028,2]
[311812976,1705427450829,-10475.5833325,0.00028028,14]
[311812977,1705427450839,-151.0,0.0002803,7]
[311812978,1705427450850,-319.545544,0.0002803,7]
[311812979,1705427450861,-319.545544,0.0002803,7]
[311812980,1705427450871,-30609.0,0.0002803,2]
[311812981,1705427450881,-832.9,0.00028129,2]
[311812982,1705427450892,-294.22,0.00028159,2]
[311812983,1705427450902,-314.46,0.00028159,2]
[311812984,1705427450913,-294.22,0.00028159,2]
[311812985,1705427450923,-314.46,0.00028159,2]
[311812986,1705427450933,-314.46,0.00028159,2]
[311812987,1705427450944,-294.22,0.00028159,2]
[311812988,1705427450954,-314.46,0.00028159,2]
[311812989,1705427450964,-294.22,0.00028159,2]
[311812990,1705427450974,-294.22,0.00028159,2]
[311812991,1705427450984,-314.46,0.00028159,2]
[311812992,1705427450994,-314.46,0.00028159,2]
[311812993,1705427451005,-314.46,0.00028159,2]
[311812994,1705427451015,-294.22,0.00028159,2]
[311812995,1705427451025,-294.22,0.00028159,2]
[311812996,1705427451035,-314.46,0.00028159,2]
[311812997,1705427451045,-628.56,0.00028159,2]
[311812998,1705427451056,-294.22,0.00028159,2]
[311812999,1705427451065,-294.22,0.00028159,2]
[311813000,1705427451076,-294.22,0.00028159,2]
[311813001,1705427451087,-30609.0,0.00028189,2]
[311813002,1705427451097,-243.42,0.00028301,2]
[311813003,1705427451108,-167.0,0.00028307,2]
[311813004,1705427451119,-205.0,0.00028316,10]
[311813005,1705427451132,-30609.0,0.00028347,2]
[311813006,1705427451142,-401.54,0.00028423,2]
[311813007,1705427451152,-399.22,0.00028423,2]
[311813008,1705427451163,-259.73,0.00028423,2]
[311813009,1705427451173,-150.0,0.000285,17]
[311813010,1705427451183,-30609.0,0.00028505,2]
[311813011,1705427451194,-30609.0,0.00028664,2]
[311813012,1705427451205,-316.18,0.00028674,2]
[311813013,1705427451216,-155.0,0.00028767,2]
[311813014,1705427451226,-8000.0,0.000288,2]
[311813015,1705427451236,-300.0,0.00028822,2]
[311813016,1705427451247,-500.0,0.00028822,2]
[311813017,1705427451258,-500.0,0.00028822,2]
[311813018,1705427451268,-500.0,0.00028822,2]
[311813019,1705427451278,-500.0,0.00028822,2]
[311813020,1705427451288,-500.0,0.00028822,2]
[311813021,1705427451298,-500.0,0.00028822,2]
[311813022,1705427451308,-500.0,0.00028822,2]
[311813023,1705427451318,-500.0,0.00028822,2]
[311813024,1705427451328,-500.0,0.00028822,2]
[311813025,1705427451339,-500.0,0.00028822,2]
[311813026,1705427451349,-500.0,0.00028822,2]
[311813027,1705427451359,-500.0,0.00028822,2]
[311813028,1705427451369,-500.0,0.00028822,2]
[311813029,1705427451379,-30609.0,0.00028822,2]
[311813030,1705427451389,-162.09946546,0.0002885,2]
[311813031,1705427451399,-185.0,0.00028929,2]
[311813032,1705427451410,-151.0,0.00028981,7]
[311813033,1705427451421,-319.545544,0.00028981,7]
[311813034,1705427451432,-319.545554,0.00028981,7]
[311813035,1705427451442,-294.22,0.00028981,2]
[311813036,1705427451453,-294.22,0.00028981,2]
[311813037,1705427451463,-294.22,0.00028981,2]
[311813038,1705427451473,-563.23,0.00028981,2]
[311813039,1705427451484,-160.35028919,0.00029,2]
[311813040,1705427451495,-314.0689574,0.00029,2]
[311813041,1705427451506,-9820.0,0.00029,5]
[311813042,1705427451811,-12081.0,0.00029,2]
[311813043,1705427451864,-10000.0,0.00029,3]
[311813044,1705427451874,-1350.0,0.00029,3]
[311813045,1705427451883,-150.0,0.00029,17]
[311813046,1705427451892,-388.74,0.00029005,2]
[311813047,1705427451901,-150.0,0.00029005,2]
[311813048,1705427451910,-311.96,0.00029005,2]
[311813049,1705427451920,-462.35,0.00029104,2]
[311813050,1705427451930,-832.9,0.00029108,2]
[311813051,1705427451940,-155.0,0.00029153,2]
[311813052,1705427451950,-4905.42373496,0.00029199,2]
[311813053,1705427451959,-500.0,0.00029477,3]
[311813054,1705427451969,-500.0,0.00029486,3]
[311813055,1705427451978,-500.0,0.00029494,3]
[311813056,1705427451988,-550.84502469,0.000295,2]
[311813057,1705427451997,-150.0,0.000295,18]
[311813058,1705427452007,-500.0,0.00029503,3]
[311813059,1705427452016,-500.0,0.00029512,3]
[311813060,1705427452026,-500.0,0.00029521,3]
[311813061,1705427452036,-500.0,0.0002953,3]
[311813062,1705427452045,-500.0,0.00029538,3]
[311813063,1705427452055,-500.0,0.00029547,3]
[311813064,1705427452064,-152.0,0.00029551,3]
[311813065,1705427452074,-672.06,0.00029675,2]
[311813066,1705427452083,-408.4,0.00029793,2]
[311813067,1705427452092,-150.0,0.00029793,2]
[311813068,1705427452102,-152.92,0.00029793,2]
[311813069,1705427452111,-418.24,0.00029793,2]
[311813070,1705427452121,-308.68,0.00029793,2]
[311813071,1705427452130,-408.4,0.00029793,2]
[311813072,1705427452140,-150.0,0.00029793,2]
[311813073,1705427452150,-418.24,0.00029793,2]
[311813074,1705427452160,-418.24,0.00029793,2]
[311813075,1705427452170,-150.0,0.00029793,2]
[311813076,1705427452179,-408.4,0.00029793,2]
[311813077,1705427452189,-175.43459194,0.000298,2]
[311813078,1705427452200,-179.0,0.0002983,2]
[311813079,1705427452210,-2720.22323293,0.0002996,2]
[311813080,1705427452219,-205826.93929839,0.0002998,2]
[311813081,1705427452229,-33896.06355432,0.0002998,2]
[311813082,1705427452240,-500.0,0.00029987,2]
[311813083,1705427452250,-31406.87050793,0.00029997,2]
[311813084,1705427452260,-300.0,0.00029999,2]
[311813085,1705427452271,-100000.0,0.0003,2]
[311813086,1705427452280,-770.36519149,0.0003,2]
[311813087,1705427452289,-155.79994966,0.0003,4]
[311813088,1705427452300,-2550.6211898,0.0003,4]
[311813089,1705427452309,-635.61130531,0.0003,4]
[311813090,1705427452319,-18115.07170656,0.0003,5]
[311813091,1705427452328,-904.99620234,0.0003,4]
[311813092,1705427452338,-155.28167376,0.0003,4]
[311813093,1705427452348,-8835.80672558,0.0003,4]
[311813094,1705427452357,-72888.49331916,0.0003,4]
[311813095,1705427452367,-374.7355087,0.0003,4]
[311813096,1705427452378,-813.80244593,0.0003,4]
[311813097,1705427452387,-3417.00773658,0.0003,3]
[311813098,1705427452404,-1575.05989741,0.0003,2]
[311813099,1705427452416,-582.28505175,0.0003,2]
[311813100,1705427452434,-19017.19619234,0.0003,4]
[311813101,1705427452444,-9633.53610727,0.0003,2]
[311813102,1705427452453,-462.2648916,0.0003,4]
[311813103,1705427452463,-987.87678288,0.0003,2]
[311813104,1705427452472,-296.11168854,0.0003,4]
[311813105,1705427452482,-2500.0,0.0003,2]
[311813106,1705427452492,-308716.90476813,0.0003,4]
[311813107,1705427452502,-6857.62294565,0.0003,4]
[311813108,1705427452512,-445.98483451,0.0003,4]
[311813109,1705427452521,-718.78071782,0.0003,2]
[311813110,1705427452531,-172.95382108,0.0003,4]
[311813111,1705427452540,-232276.50989751,0.0003,2]
[311813112,1705427452550,-1032.0,0.0003,3]
[311813113,1705427452560,-1012.0,0.0003,3]
[311813114,1705427452569,-258.37781876,0.0003,4]
[311813115,1705427452582,-5734.37864632,0.0003,4]
[311813116,1705427452591,-150.1,0.0003,2]
[311813117,1705427452600,-172.4063,0.0003,4]
[311813118,1705427452610,-2500.0,0.0003,7]
[311813119,1705427452619,-32434.68668492,0.0003,2]
[311813120,1705427452628,-150.0,0.0003,18]
[311813121,1705427452638,-195.90024771,0.0003,4]
[311813122,1705427452647,-151.14702409,0.0003,12]
[311813123,1705427452657,-151.14702409,0.0003,11]
[311813124,1705427452667,-151.14702409,0.0003,9]
[311813125,1705427452677,-151.14702409,0.0003,10]
[311813126,1705427452686,-151.14702409,0.0003,9]
[311813127,1705427452695,-151.14702409,0.0003,8]
[311813128,1705427452705,-151.14702409,0.0003,9]
[311813129,1705427452714,-151.14702409,0.0003,12]
[311813130,1705427452723,-151.14702409,0.0003,9]
[311813131,1705427452733,-151.14702409,0.0003,10]
[311813132,1705427452742,-151.14702409,0.0003,9]
[311813133,1705427452751,-151.14702409,0.0003,11]
[311813134,1705427452760,-151.14702409,0.0003,9]
[311813135,1705427452769,-151.14702409,0.0003,11]
[311813136,1705427452779,-151.14702409,0.0003,9]
[311813137,1705427452788,-151.14702409,0.0003,9]
[311813138,1705427452798,-151.14702409,0.0003,12]
[311813139,1705427452807,-151.14702409,0.0003,10]
[311813140,1705427452816,-151.14702409,0.0003,10]
[311813141,1705427452826,-151.14702409,0.0003,9]
[311813142,1705427452835,-151.14702409,0.0003,8]
[311813143,1705427452844,-151.14702409,0.0003,9]
[311813144,1705427452853,-151.14702409,0.0003,8]
[311813145,1705427452863,-2009.78,0.0003,2]
[311813146,1705427452872,-300.0,0.0003,2]
[311813147,1705427452882,-200.0,0.0003,2]
[311813148,1705427452891,-3000.0,0.0003,2]
[311813149,1705427452901,-3000.0,0.0003,2]
[311813150,1705427452910,-3000.0,0.0003,2]
[311813151,1705427452921,-3000.0,0.0003,2]
[311813152,1705427452930,-3000.0,0.0003,2]
[311813153,1705427452940,-3000.0,0.0003,2]
[311813154,1705427452950,-152.2,0.0003,2]
[311813155,1705427452960,-152.2,0.0003,2]
[311813156,1705427452970,-204.0,0.0003,2]
[311813157,1705427452981,-157.77,0.0003,2]
[311813158,1705427452991,-157.77,0.0003,2]
[311813159,1705427453001,-157.77,0.0003,2]
[311813160,1705427453010,-157.77,0.0003,2]